bitfinex/quotes_SOLUSD_20241220
["timestamp","ask_amount","ask_price","bid_price","bid_amount"]
[1734732164004,6.431,190.72,190.58,16.52864621]
[1734732164005,16.52864621,190.66,190.58,16.52864621]
[1734732168020,16.52864621,190.64,190.56,16.52864621]
[1734732168815,13.113,190.65,190.58,16.52864621]
[1734732170822,16.52864621,190.66,190.58,16.52864621]
[1734732170999,16.52864621,190.7,190.62,16.52864621]
[1734732171687,16.52864621,190.66,190.58,16.52864621]
[1734732177631,16.52864621,190.64,190.56,16.52864621]
[1734732178033,16.52864621,190.66,190.58,16.52864621]
[1734732179927,16.52864621,190.64,190.56,16.52864621]
[1734732182339,16.52864621,190.66,190.58,16.52864621]
[1734732183945,16.52864621,190.64,190.56,16.52864621]
[1734732184158,16.52864621,190.62,190.54,24.33504621]
[1734732184456,16.52864621,190.62,190.54,16.52864621]
[1734732184630,16.52864621,190.61,190.53,16.52864621]
[1734732184946,16.52864621,190.58,190.51,16.52864621]
[1734732185154,16.52864621,190.58,190.5,22.80504621]
[1734732185757,16.52864621,190.57,190.5,22.80504621]
[1734732185930,16.52864621,190.57,190.5,16.52864621]
[1734732186124,16.52864621,190.58,190.5,16.52864621]
[1734732187339,16.52864621,190.63,190.56,16.52864621]
[1734732187539,16.52864621,190.62,190.55,16.52864621]
[1734732187746,16.52864621,190.61,190.54,16.52864621]
[1734732187924,16.52864621,190.62,190.55,16.52864621]
[1734732188444,22.89304621,190.64,190.57,16.52864621]
[1734732188628,16.52864621,190.64,190.57,16.52864621]
[1734732188833,16.52864621,190.63,190.56,16.52864621]
[1734732189137,16.52864621,190.64,190.57,16.52864621]
[1734732189642,16.52864621,190.63,190.56,16.52864621]
[1734732190147,16.52864621,190.64,190.57,16.52864621]
[1734732190532,16.52864621,190.62,190.55,16.52864621]
[1734732191149,16.52864621,190.61,190.54,16.52864621]
[1734732191844,16.52864621,190.6,190.53,16.52864621]
[1734732192039,16.52864621,190.58,190.51,16.52864621]
[1734732194153,16.52864621,190.56,190.49,18.03904621]
[1734732194352,16.52864621,190.55,190.48,16.52864621]
[1734732194538,16.52864621,190.54,190.47,16.52864621]
[1734732194726,16.52864621,190.55,190.48,16.52864621]
[1734732197256,2.08959184,190.62,190.51,16.52864621]
[1734732197458,16.52864621,190.6,190.53,16.52864621]
[1734732197631,16.52864621,190.58,190.46,6.2764]
[1734732197968,16.52864621,190.58,190.51,16.52864621]
[1734732198164,16.52864621,190.61,190.53,16.52864621]
[1734732198462,16.52864621,190.61,190.54,16.52864621]
[1734732198864,16.52864621,190.61,190.53,16.52864621]
[1734732201045,16.52864621,190.63,190.56,16.52864621]
[1734732201272,16.52864621,190.64,190.56,16.52864621]
[1734732201480,16.52864621,190.64,190.54,16.52864621]
[1734732201481,16.52864621,190.61,190.54,16.52864621]
[1734732202672,16.52864621,190.57,190.47,1.596]
[1734732202848,16.52864621,190.57,190.49,16.52864621]
[1734732203166,16.52864621,190.57,190.5,16.52864621]
[1734732203373,16.52864621,190.59,190.51,16.52864621]
[1734732204770,13.1162,190.61,190.47,1.596]
[1734732204771,16.52864621,190.57,190.49,16.52864621]
[1734732207972,29.64644621,190.59,190.51,16.52864621]
[1734732213776,13.1153,190.62,190.53,16.52864621]
[1734732214077,16.52864621,190.62,190.55,16.52864621]
[1734732216276,16.52864621,190.63,190.56,16.52864621]
[1734732216462,16.52864621,190.67,190.59,16.52864621]
[1734732217667,18.04334621,190.69,190.61,16.52864621]
[1734732218552,18.04334621,190.69,190.6,16.52864621]
[1734732218764,36.52864621,190.68,190.6,16.52864621]
[1734732219486,16.52864621,190.66,190.6,16.52864621]
[1734732219866,16.52864621,190.66,190.58,16.52864621]
[1734732221364,16.52864621,190.64,190.58,16.52864621]
[1734732221556,16.52864621,190.64,190.56,16.52864621]
[1734732222785,16.52864621,190.62,190.55,1.5125]
[1734732223487,16.52864621,190.62,190.56,16.52864621]
[1734732226667,16.52864621,190.62,190.54,22.66664621]
[1734732226865,16.52864621,190.62,190.54,16.52864621]
[1734732227988,16.52864621,190.59,190.51,16.52864621]
[1734732228161,16.52864621,190.6,190.52,16.52864621]
[1734732228876,16.52864621,190.6,190.53,16.52864621]
[1734732229877,36.893984,190.59,190.47,16.52864621]
[1734732230079,16.52864621,190.58,190.51,16.52864621]
[1734732230560,20.0,190.62,190.53,16.52864621]
[1734732230760,23.776884,190.64,190.53,16.52864621]
[1734732230761,36.52864621,190.61,190.53,16.52864621]
[1734732231767,16.52864621,190.59,190.53,16.52864621]
[1734732232581,16.52864621,190.57,190.51,16.52864621]
[1734732232878,10.59121129,190.57,190.5,10.59121129]
[1734732233255,10.59121129,190.57,190.49,1.5718]
[1734732233473,10.59121129,190.54,190.46,10.59121129]
[1734732234764,16.5544805,190.54,190.46,16.5544805]
[1734732240517,16.5544805,190.56,190.48,16.5544805]
[1734732240692,16.5544805,190.58,190.5,16.5544805]
[1734732242175,18.1527805,190.62,190.56,16.5544805]
[1734732242381,18.1527805,190.62,190.45,6.3385]
[1734732242382,16.5544805,190.58,190.48,20.0]
[1734732242696,16.5544805,190.58,190.51,16.5544805]
[1734732244191,13.1157,190.61,190.53,16.5544805]
[1734732244409,18.1527805,190.62,190.53,16.5544805]
[1734732245002,16.5544805,190.6,190.53,16.5544805]
[1734732248031,16.5544805,190.62,190.55,16.5544805]
[1734732248906,13.1125,190.66,190.55,16.5544805]
[1734732248907,16.5544805,190.63,190.55,16.5544805]
[1734732250723,16.5544805,190.61,190.53,18.0573805]
[1734732251313,16.5544805,190.59,190.49,18.0573805]
[1734732251493,16.5544805,190.55,190.47,16.5544805]
[1734732251693,16.5544805,190.53,190.45,22.8929805]
[1734732251909,16.5544805,190.53,190.45,16.5544805]
[1734732252111,16.5544805,190.53,190.46,16.5544805]
[1734732252635,16.5544805,190.52,190.45,16.5544805]
[1734732252918,13.1202,190.55,190.45,16.5544805]
[1734732252919,16.5544805,190.53,190.45,16.5544805]
[1734732253125,1.6093,190.58,190.49,16.5544805]
[1734732253299,1.6093,190.58,190.52,16.5544805]
[1734732254503,16.5544805,190.59,190.52,16.5544805]
[1734732254831,10.58834161,190.6,190.52,10.58834161]
[1734732255205,10.58834161,190.61,190.52,10.58834161]
[1734732257294,10.58834161,190.61,190.54,10.58834161]
[1734732257501,12.19764161,190.63,190.54,10.58834161]
[1734732259334,10.58834161,190.65,190.56,10.58834161]
[1734732260331,10.58834161,190.63,190.56,10.58834161]
[1734732263719,10.58834161,190.61,190.54,10.58834161]
[1734732264834,10.58834161,190.59,190.52,10.58834161]
[1734732265039,23.776884,190.64,190.55,10.58834161]
[1734732265334,10.58834161,190.63,190.56,10.58834161]
[1734732265899,23.70154161,190.65,190.57,10.58834161]
[1734732266142,23.70154161,190.65,190.58,10.58834161]
[1734732266617,23.70154161,190.65,190.57,10.58834161]
[1734732267006,10.58834161,190.61,190.5,13.1233]
[1734732267210,10.58834161,190.6,190.53,10.58834161]
[1734732267413,10.58834161,190.62,190.55,10.58834161]
[1734732267624,10.58834161,190.62,190.54,10.58834161]
[1734732268036,10.58834161,190.64,190.56,10.58834161]
[1734732269750,10.58834161,190.64,190.51,0.78705465]
[1734732269751,10.58834161,190.63,190.55,10.58834161]
[1734732269952,10.58834161,190.61,190.51,0.78705465]
[1734732270246,10.58834161,190.61,190.54,10.58834161]
[1734732270714,10.58834161,190.62,190.54,10.58834161]
[1734732272012,10.58834161,190.64,190.56,10.58834161]
[1734732272514,13.1132,190.65,190.56,10.58834161]
[1734732272715,23.70154161,190.65,190.56,10.58834161]
[1734732274442,10.58834161,190.61,190.5,13.1233]
[1734732274646,10.58834161,190.61,190.53,10.58834161]
[1734732275143,23.776884,190.64,190.53,10.58834161]
[1734732275349,10.58834161,190.62,190.53,10.58834161]
[1734732276254,10.58834161,190.64,190.55,10.58834161]
[1734732279952,1.5785,190.68,190.59,10.58834161]
[1734732280254,10.58834161,190.7,190.61,10.58834161]
[1734732283861,13.1091,190.71,190.63,10.58834161]
[1734732284157,23.69544161,190.74,190.65,10.58834161]
[1734732285455,23.776884,190.73,190.65,10.58834161]
[1734732286662,10.58834161,190.72,190.65,10.58834161]
[1734732287356,10.58834161,190.7,190.6,0.7866323]
[1734732287554,10.58834161,190.7,190.61,10.58834161]
[1734732287858,10.58834161,190.7,190.63,10.58834161]
[1734732288676,23.776884,190.69,190.59,6.0821]
[1734732288963,23.776884,190.69,190.61,10.58834161]
[1734732289545,13.1109,190.68,190.61,10.58834161]
[1734732289956,23.69924161,190.68,190.57,1.6619]
[1734732290169,23.69924161,190.68,190.59,10.58834161]
[1734732292359,23.69924161,190.68,190.57,1.6619]
[1734732292744,23.69924161,190.68,190.59,10.58834161]
[1734732294577,10.58834161,190.66,190.59,10.58834161]
[1734732294741,10.58834161,190.66,190.54,6.0808]
[1734732294742,23.70134161,190.65,190.54,6.0808]
[1734732294941,23.70134161,190.65,190.57,10.58834161]
[1734732296763,23.70134161,190.65,190.54,6.0808]
[1734732296974,10.58834161,190.63,190.54,10.58834161]
[1734732297845,10.58834161,190.62,190.55,10.58834161]
[1734732298143,10.58834161,190.62,190.54,10.58834161]
[1734732298669,10.58834161,190.61,190.53,10.58834161]
[1734732298979,10.58834161,190.59,190.51,10.58834161]
[1734732299148,10.58834161,190.57,190.5,10.58834161]
[1734732299553,10.58834161,190.57,190.49,10.58834161]
[1734732300351,10.58834161,190.54,190.44,8.1995]
[1734732300670,23.776884,190.56,190.46,10.58834161]
[1734732300671,10.58834161,190.53,190.46,10.58834161]
[1734732301057,10.58834161,190.54,190.47,10.58834161]
[1734732301369,10.58834161,190.54,190.47,10.08834161]
[1734732302344,36.896684,190.56,190.47,10.08834161]
[1734732302567,68.58626644,190.6,190.44,8.1995]
[1734732302568,23.70474161,190.6,190.53,10.58834161]
[1734732302875,23.70474161,190.6,190.52,10.58834161]
[1734732302876,10.58834161,190.59,190.52,10.58834161]
[1734732303171,13.1164,190.6,190.53,10.58834161]
[1734732303172,23.70474161,190.6,190.53,10.58834161]
[1734732306359,13.1164,190.6,190.53,10.58834161]
[1734732306560,23.70474161,190.6,190.53,10.58834161]
[1734732306755,29.66074071,190.6,190.52,16.54434071]
[1734732307059,16.54434071,190.58,190.48,16.54434071]
[1734732307271,16.54434071,190.54,190.46,16.54434071]
[1734732308283,29.66544071,190.54,190.46,16.54434071]
[1734732308881,16.54434071,190.52,190.45,16.54434071]
[1734732311164,16.54434071,190.53,190.45,16.54434071]
[1734732312074,16.54434071,190.53,190.46,16.54434071]
[1734732313754,29.66544071,190.54,190.47,16.54434071]
[1734732314871,13.1211,190.54,190.46,16.54434071]
[1734732315074,16.54434071,190.52,190.42,20.6685183]
[1734732315285,16.54434071,190.52,190.43,16.54434071]
[1734732315286,16.54434071,190.51,190.43,16.54434071]
[1734732315597,16.54434071,190.5,190.43,16.54434071]
[1734732316079,16.54434071,190.51,190.43,16.54434071]
[1734732316261,16.54434071,190.51,190.44,16.54434071]
[1734732316573,16.54434071,190.51,190.43,16.54434071]
[1734732318475,16.54434071,190.51,190.44,16.54434071]
[1734732320185,6.2826,190.56,190.42,0.6685183]
[1734732320186,1.6037,190.58,190.48,16.54434071]
[1734732320383,31.26594071,190.58,190.5,16.54434071]
[1734732320590,31.26594071,190.58,190.51,16.54434071]
[1734732321182,31.26594071,190.58,190.5,16.54434071]
[1734732321999,19.6303,190.61,190.52,16.54434071]
[1734732322166,13.1159,190.61,190.54,16.54434071]
[1734732322484,29.65804071,190.64,190.57,16.54434071]
[1734732322662,16.54434071,190.63,190.55,16.54434071]
[1734732324700,16.54434071,190.61,190.53,16.54434071]
[1734732325074,16.54434071,190.63,190.55,16.54434071]
[1734732328391,16.54434071,190.61,190.53,16.54434071]
[1734732328775,29.65884071,190.63,190.53,16.54434071]
[1734732328970,16.54434071,190.63,190.55,16.54434071]
[1734732329374,16.54434071,190.67,190.59,16.54434071]
[1734732329674,29.65464071,190.69,190.61,16.54434071]
[1734732330772,16.54434071,190.71,190.63,16.54434071]
[1734732331175,16.54434071,190.73,190.65,16.54434071]
[1734732331375,16.54434071,190.75,190.67,16.54434071]
[1734732333294,16.54434071,190.79,190.71,16.54434071]
[1734732333489,16.54434071,190.81,190.73,16.54434071]
[1734732335283,16.54434071,190.85,190.77,16.54434071]
[1734732335479,16.54434071,190.89,190.81,16.54434071]
[1734732335671,16.54434071,190.91,190.83,16.54434071]
[1734732336093,16.54434071,190.93,190.85,16.54434071]
[1734732336400,16.54434071,190.91,190.83,16.54434071]
[1734732336579,16.54434071,190.87,190.79,16.54434071]
[1734732336991,16.54434071,190.84,190.77,16.54434071]
[1734732337577,20.0,190.81,190.74,16.54434071]
[1734732337777,16.54434071,190.8,190.72,22.58874071]
[1734732338000,36.54434071,190.81,190.74,16.54434071]
[1734732338882,36.54434071,190.81,190.73,16.54434071]
[1734732339400,16.54434071,190.8,190.72,16.54434071]
[1734732339694,16.54434071,190.78,190.71,16.54434071]
[1734732340199,16.54434071,190.78,190.7,16.54434071]
[1734732341289,16.54434071,190.78,190.72,16.54434071]
[1734732341993,16.54434071,190.78,190.7,16.54434071]
[1734732343694,16.54434071,190.78,190.68,16.54434071]
[1734732343695,16.54434071,190.76,190.68,16.54434071]
[1734732343895,23.776884,190.77,190.63,6.0444]
[1734732343896,16.54434071,190.7,190.63,6.0444]
[1734732344098,16.54434071,190.68,190.61,16.54434071]
[1734732344405,16.54434071,190.72,190.65,16.54434071]
[1734732345379,36.54434071,190.74,190.65,16.54434071]
[1734732345580,36.54434071,190.74,190.6,17.33099505]
[1734732345581,36.54434071,190.74,190.67,16.54434071]
[1734732347114,16.54434071,190.76,190.69,16.54434071]
[1734732347411,29.64844071,190.78,190.71,16.54434071]
[1734732348301,16.54434071,190.76,190.69,16.54434071]
[1734732348891,16.54434071,190.74,190.62,6.87898287]
[1734732349089,16.54434071,190.74,190.66,16.54434071]
[1734732349685,16.54434071,190.72,190.66,16.54434071]
[1734732350609,16.54434071,190.7,190.62,22.63674071]
[1734732350778,16.54434071,190.7,190.62,16.54434071]
[1734732351400,16.54434071,190.68,190.6,16.54434071]
[1734732351621,16.54434071,190.67,190.59,16.54434071]
[1734732351785,16.54434071,190.65,190.58,16.54434071]
[1734732352112,16.54434071,190.7,190.62,16.54434071]
[1734732352408,16.54434071,190.7,190.57,6.87935081]
[1734732352409,20.0,190.72,190.65,16.54434071]
[1734732352578,36.54434071,190.72,190.64,16.54434071]
[1734732353912,36.54434071,190.7,190.64,16.54434071]
[1734732355211,16.54434071,190.72,190.64,16.54434071]
[1734732357207,29.64904071,190.78,190.7,16.54434071]
[1734732357692,29.64904071,190.78,190.64,1.6375]
[1734732357693,16.54434071,190.74,190.66,16.54434071]
[1734732358522,29.64904071,190.78,190.7,16.54434071]
[1734732358898,13.1047,190.78,190.72,16.54434071]
[1734732359517,29.64904071,190.78,190.7,16.54434071]
[1734732360794,16.54434071,190.76,190.68,16.54434071]
[1734732361144,13.1047,190.78,190.64,1.6375]
[1734732361145,16.54434071,190.74,190.66,16.54434071]
[1734732361913,16.54434071,190.72,190.64,18.18184071]
[1734732362311,16.54434071,190.74,190.66,16.54434071]
[1734732363117,16.54434071,190.72,190.62,16.54434071]
[1734732363421,16.54434071,190.7,190.62,16.54434071]
[1734732364319,13.1056,190.76,190.66,16.54434071]
[1734732364537,16.54434071,190.75,190.67,16.54434071]
[1734732364839,29.64994071,190.76,190.68,16.54434071]
[1734732366630,20.23471296,190.8,190.59,3.74438452]
[1734732366631,16.54434071,190.72,190.59,1.6375]
[1734732366828,16.54434071,190.72,190.62,16.54434071]
[1734732367137,16.54434071,190.72,190.64,16.54434071]
[1734732368023,16.54434071,190.76,190.68,16.54434071]
[1734732370246,16.54434071,190.72,190.64,16.54434071]
[1734732370746,16.54434071,190.7,190.62,16.54434071]
[1734732371510,16.54434071,190.64,190.54,1.5657]
[1734732371739,16.54434071,190.62,190.55,16.54434071]
[1734732372433,16.54434071,190.64,190.55,16.54434071]
[1734732372624,26.45974042,190.64,190.56,26.45974042]
[1734732375037,26.45974042,190.66,190.56,26.45974042]
[1734732375723,26.45974042,190.66,190.58,26.45974042]
[1734732376539,26.45974042,190.68,190.6,26.45974042]
[1734732377538,26.45974042,190.66,190.58,26.45974042]
[1734732378051,26.45974042,190.64,190.56,26.45974042]
[1734732378334,26.45974042,190.66,190.58,26.45974042]
[1734732379228,39.57074042,190.68,190.6,26.45974042]
[1734732379434,26.45974042,190.68,190.6,26.45974042]
[1734732379740,26.45974042,190.68,190.62,26.45974042]
[1734732380538,26.45974042,190.72,190.64,26.45974042]
[1734732380739,39.56684042,190.74,190.66,26.45974042]
[1734732383176,26.45974042,190.76,190.68,26.45974042]
[1734732385122,26.45974042,190.78,190.7,26.45974042]
[1734732385427,1.6281,190.8,190.73,26.45974042]
[1734732388052,39.56234042,190.81,190.73,26.45974042]
[1734732388241,26.45974042,190.83,190.75,26.45974042]
[1734732390535,28.05544042,190.85,190.77,26.45974042]
[1734732390866,20.0,190.84,190.79,26.45974042]
[1734732391158,39.55774042,190.87,190.79,26.45974042]
[1734732391358,13.098,190.87,190.81,26.45974042]
[1734732392041,26.45974042,190.89,190.81,26.45974042]
[1734732392635,16.49496004,190.89,190.81,16.49496004]
[1734732393667,16.49496004,190.85,190.77,16.49496004]
[1734732394532,16.49496004,190.83,190.75,16.49496004]
[1734732396772,16.49496004,190.81,190.73,16.49496004]
[1734732397268,16.49496004,190.79,190.72,16.49496004]
[1734732400353,40.27184404,190.78,190.71,16.49496004]
[1734732400970,13.1031,190.8,190.65,7.823]
[1734732400971,13.1031,190.8,190.74,16.49496004]
[1734732404182,16.49496004,190.84,190.73,1.5641]
[1734732404364,1.5581,190.88,190.8,16.49496004]
[1734732404548,18.05306004,190.88,190.81,16.49496004]
[1734732404750,1.5581,190.88,190.81,16.49496004]
[1734732405494,18.05306004,190.88,190.81,16.49496004]
[1734732406849,16.49496004,190.87,190.8,16.49496004]
[1734732407065,16.49496004,190.89,190.81,16.49496004]
[1734732407872,16.49496004,190.89,190.82,16.49496004]
[1734732408058,13.0963,190.9,190.84,16.49496004]
[1734732408573,13.0963,190.9,190.83,16.49496004]
[1734732409379,23.776884,190.89,190.83,16.49496004]
[1734732409675,23.776884,190.87,190.81,16.49496004]
[1734732414578,16.49496004,190.84,190.77,16.49496004]
[1734732414753,23.776884,190.83,190.79,16.49496004]
[1734732414959,16.49496004,190.86,190.79,16.49496004]
[1734732415266,23.776884,190.85,190.79,16.49496004]
[1734732416083,23.776884,190.85,190.78,16.49496004]
[1734732416884,16.49496004,190.84,190.76,16.49496004]
[1734732417071,23.776884,190.83,190.76,16.49496004]
[1734732419200,16.49496004,190.88,190.8,16.49496004]
[1734732419389,26.1929,190.9,190.82,16.49496004]
[1734732419390,16.49496004,190.9,190.82,16.49496004]
[1734732420901,29.58816004,190.94,190.86,16.49496004]
[1734732421186,6.213,190.95,190.86,16.49496004]
[1734732421187,16.49496004,190.95,190.86,16.49496004]
[1734732421482,16.49496004,190.91,190.83,7.9413]
[1734732421860,16.49496004,190.91,190.82,16.49496004]
[1734732422580,23.776884,190.9,190.82,16.49496004]
[1734732424190,23.776884,190.88,190.82,16.49496004]
[1734732425467,16.49496004,190.89,190.82,16.49496004]
[1734732425468,23.776884,190.89,190.82,16.49496004]
[1734732425671,23.776884,190.89,190.84,16.49496004]
[1734732426082,16.49496004,190.92,190.84,16.49496004]
[1734732426405,29.58686004,190.96,190.88,16.49496004]
[1734732427687,23.776884,190.93,190.86,16.49496004]
[1734732427863,23.776884,190.91,190.84,16.49496004]
[1734732430889,16.49496004,190.94,190.86,16.49496004]
[1734732431078,29.58686004,190.96,190.88,16.49496004]
[1734732431277,16.49496004,190.98,190.9,16.49496004]
[1734732431483,16.49496004,190.98,190.88,1.5877]
[1734732431484,16.49496004,191.0,190.92,16.49496004]
[1734732433122,16.49496004,191.07,190.98,16.49496004]
[1734732433997,15.99496004,191.07,190.98,16.49496004]
[1734732434185,16.49496004,191.05,190.98,16.49496004]
[1734732435787,23.776884,191.04,190.98,16.49496004]
[1734732436528,23.776884,191.02,190.94,16.49496004]
[1734732438111,23.276884,191.02,190.94,16.49496004]
[1734732440816,33.085,191.06,190.94,16.49496004]
[1734732440998,16.49496004,191.05,190.96,16.49496004]
[1734732441505,16.49496004,191.05,190.98,16.49496004]
[1734732442705,16.49496004,191.05,190.96,36.49496004]
[1734732443113,23.776884,191.05,190.96,16.49496004]
[1734732443403,40.27184404,191.05,190.96,16.49496004]
[1734732443611,16.49496004,191.05,190.98,16.49496004]
[1734732444019,15.99496004,191.05,190.98,16.49496004]
[1734732445720,23.776884,191.04,190.96,16.49496004]
[1734732445922,16.49496004,191.03,190.96,16.49496004]
[1734732446726,23.776884,191.02,190.94,16.49496004]
[1734732447129,23.776884,191.02,190.93,7.9901]
[1734732447328,23.776884,191.02,190.94,16.49496004]
[1734732447711,23.776884,191.0,190.93,1.5604]
[1734732447917,16.49496004,190.97,190.9,16.49496004]
[1734732448618,23.776884,190.98,190.9,16.49496004]
[1734732448821,40.27184404,190.98,190.9,16.49496004]
[1734732449047,16.49496004,190.96,190.88,16.49496004]
[1734732449218,16.49496004,190.93,190.86,16.49496004]
[1734732449611,16.49496004,190.94,190.87,16.49496004]
[1734732450011,16.49496004,190.94,190.86,16.49496004]
[1734732450345,16.49496004,190.97,190.89,16.49496004]
[1734732450526,16.49496004,190.97,190.9,16.49496004]
[1734732451153,23.276884,190.98,190.91,16.49496004]
[1734732451446,39.77184404,190.98,190.9,16.49496004]
[1734732452511,39.27184404,190.98,190.9,16.49496004]
[1734732454442,22.776884,190.98,190.91,16.49496004]
[1734732454648,16.49496004,191.02,190.95,16.49496004]
[1734732455010,16.49496004,191.03,190.95,16.49496004]
[1734732455335,16.49496004,191.03,190.96,16.49496004]
[1734732455515,18.08466004,191.04,190.96,16.49496004]
[1734732455714,16.49496004,191.03,190.96,16.49496004]
[1734732456738,16.49496004,191.01,190.94,16.49496004]
[1734732456916,16.49496004,191.03,190.96,16.49496004]
[1734732457732,29.58116004,191.05,190.96,16.49496004]
[1734732458327,15.3419183,191.08,191.0,16.49496004]
[1734732458530,18.75317834,191.08,191.0,16.49496004]
[1734732459322,16.49496004,191.06,190.98,16.49496004]
[1734732459833,16.49496004,191.05,190.97,16.49496004]
[1734732460148,16.49496004,191.03,190.95,16.49496004]
[1734732463250,15.99496004,191.03,190.95,16.49496004]
[1734732463943,16.49496004,191.05,190.97,16.49496004]
[1734732464640,16.49496004,191.07,190.99,16.49496004]
[1734732465347,43.776884,191.07,190.99,16.49496004]
[1734732465534,16.49496004,191.06,190.99,16.49496004]
[1734732466120,16.49496004,191.06,190.97,16.49496004]
[1734732466539,15.99496004,191.06,190.97,16.49496004]
[1734732469646,16.49496004,191.04,190.95,16.49496004]
[1734732469832,16.49496004,191.02,190.93,16.49496004]
[1734732470751,16.49496004,191.0,190.93,16.49496004]
[1734732470920,23.776884,191.03,190.93,16.49496004]
[1734732471123,16.49496004,191.0,190.93,16.49496004]
[1734732471325,16.49496004,191.02,190.93,16.49496004]
[1734732474152,15.99496004,191.02,190.93,16.49496004]
[1734732476250,16.49496004,191.04,190.95,16.49496004]
[1734732476449,16.49496004,191.06,190.98,16.49496004]
[1734732476879,16.49496004,191.04,190.96,36.49496004]
[1734732477157,16.49496004,191.04,190.96,16.49496004]
[1734732477334,15.3423183,191.08,190.94,16.49496004]
[1734732477534,16.49496004,191.02,190.94,16.49496004]
[1734732477851,23.776884,191.01,190.92,16.49496004]
[1734732478037,16.49496004,191.0,190.9,18.04126004]
[1734732481532,16.49496004,191.0,190.92,16.49496004]
[1734732484959,16.49496004,191.0,190.93,0.08197878]
[1734732485667,23.776884,191.01,190.93,0.08197878]
[1734732485867,16.49496004,191.0,190.93,0.08197878]
[1734732486073,16.49496004,190.96,190.93,0.08197878]
[1734732486965,16.49496004,190.98,190.93,0.08197878]
[1734732487180,18.00186004,191.0,190.93,0.08197878]
[1734732490583,16.49496004,191.02,190.94,16.49496004]
[1734732490885,1.5285,191.05,190.94,16.49496004]
[1734732491045,1.5285,191.05,190.96,16.49496004]
[1734732491244,18.02346004,191.05,190.96,16.49496004]
[1734732491755,23.776884,191.04,190.96,16.49496004]
[1734732491993,1.5285,191.05,190.96,16.49496004]
[1734732492147,18.02346004,191.05,190.96,16.49496004]
[1734732493191,1.5285,191.05,190.96,16.49496004]
[1734732493491,1.5285,191.05,190.98,16.49496004]
[1734732495673,1.5285,191.05,190.96,16.49496004]
[1734732498278,1.5285,191.05,190.98,16.49496004]
[1734732498472,0.6685183,191.08,191.0,16.49496004]
[1734732498771,0.6685183,191.08,190.98,16.49496004]
[1734732498772,16.49496004,191.07,190.98,16.49496004]
[1734732499269,0.6685183,191.08,191.03,0.08197878]
[1734732499465,16.49496004,191.05,191.03,0.08197878]
[1734732501063,20.0,191.06,191.03,0.08197878]
[1734732502476,0.6685183,191.08,191.03,16.57693882]
[1734732502678,0.6685183,191.08,191.04,10.53063797]
[1734732503975,0.6685183,191.08,191.03,0.08197878]
[1734732504274,0.6685183,191.08,191.04,10.53063797]
[1734732504577,0.6685183,191.08,191.06,10.53063797]
[1734732504767,0.6685183,191.08,191.06,16.4503167]
[1734732509859,0.6685183,191.08,191.03,0.08197878]
[1734732510254,40.2272007,191.07,191.03,0.08197878]
[1734732511266,13.7524183,191.08,191.03,0.08197878]
[1734732511267,0.6685183,191.08,191.03,0.08197878]
[1734732511583,0.6685183,191.08,191.05,16.4503167]
[1734732513179,0.6685183,191.08,191.07,16.4503167]
[1734732513589,0.6685183,191.08,191.05,16.4503167]
[1734732513764,0.6685183,191.08,191.03,16.53229548]
[1734732514283,0.6685183,191.08,191.05,16.4503167]
[1734732514462,0.6685183,191.08,191.07,16.4503167]
[1734732514861,0.6685183,191.08,191.05,16.4503167]
[1734732515500,0.6685183,191.08,191.07,16.4503167]
[1734732520488,1.5848,191.28,191.11,20.0]
[1734732520690,18.0351167,191.28,191.19,16.4503167]
[1734732521575,1.5848,191.28,191.19,16.4503167]
[1734732521802,1.5848,191.28,191.21,16.4503167]
[1734732522391,18.0351167,191.28,191.19,16.4503167]
[1734732523399,1.5848,191.28,191.21,16.4503167]
[1734732525708,20.0,191.31,191.23,16.4503167]
[1734732525880,16.4503167,191.32,191.23,16.4503167]
[1734732527175,2.06869021,191.36,191.25,16.4503167]
[1734732527400,2.06869021,191.36,191.21,13.0746]
[1734732527401,2.06869021,191.36,191.29,20.0]
[1734732527607,10.0,191.44,191.35,16.4503167]
[1734732527813,10.0,191.44,191.3,0.78382163]
[1734732527984,10.0,191.44,191.39,16.4503167]
[1734732528298,26.4503167,191.44,191.33,20.0]
[1734732528600,26.4503167,191.44,191.34,0.78352547]
[1734732528601,10.0,191.44,191.34,0.78352547]
[1734732528810,26.4503167,191.44,191.34,0.78352547]
[1734732529119,16.4503167,191.4,191.31,16.4503167]
[1734732529581,16.4503167,191.38,191.29,36.4503167]
[1734732529783,16.4503167,191.36,191.29,20.0]
[1734732530707,26.26500854,191.34,191.26,26.26500854]
[1734732530888,26.26500854,191.3,191.25,0.08197878]
[1734732531211,26.26500854,191.28,191.25,0.08197878]
[1734732531591,26.26500854,191.26,191.25,0.08197878]
[1734732531798,1.6219,191.31,191.25,0.08197878]
[1734732531998,26.26500854,191.35,191.26,26.26500854]
[1734732532302,26.26500854,191.35,191.25,0.86604511]
[1734732532303,26.26500854,191.38,191.3,26.26500854]
[1734732532612,26.26500854,191.4,191.32,26.26500854]
[1734732533213,26.26500854,191.38,191.3,26.26500854]